Cogmind - Beta 15 @@@ ROGUE MODE // 2025.09.15 @ 21:48:09 Player: cottonman132 Result: Destroyed by 1E-G9C(R) with Subdweller Laser Performance ------------- Evolutions (0) 0 Regions Visited (3) 600 Robots Destroyed (0) 0 Value Destroyed (0) 0 Prototype IDs (0) 0 Alien Tech Used (0) 0 Bonus (0) 0 TOTAL SCORE: 600 Bonus ------- None Cogmind --------- Core Integrity 0/250 Matter 300/300 Energy 100/100 System Corruption 0% Temperature Cool (6) Movement Core (200) Ox3 Location -10/Subcaves Parts ------- > --- POWER (1) -------- Ion Engine > --- PROPULSION (2) --- (None) > --- UTILITY (2) ------ Small Storage Unit > --- WEAPON (2) ------- (None) > --- INVENTORY (8) ---- Wheel Wheel Utility Shielding Light Armor Plating Light Assault Rifle Light Assault Rifle Light Assault Rifle Peak State ------------ > --- POWER ------------ Ion Engine > --- PROPULSION ------- Aluminum Leg Aluminum Leg > --- UTILITY ---------- Small Storage Unit Utility Shielding > --- WEAPON ----------- (None) > --- INVENTORY -------- Ion Engine Wheel Wheel Light Assault Rifle Light Assault Rifle Light Assault Rifle [Rating: 5] Favorites ----------- Power Ion Engine Engine Ion Engine Propulsion Aluminum Leg Leg Aluminum Leg Utility Small Storage Unit Storage Small Storage Unit Protection Light Armor Plating Weapon None Build | -11 -10 -10 -10 ------- Run | Yrd Mat Min Sub Slots Evolved . | . . . . Power . | . . . . Propulsion . | . . . . Utility . | . . . . Weapon . | . . . . Parts Attached 7 | 4 2 . 1 Power 2 | 1 . . 1 Engine 2 | 1 . . 1 Core . | . . . . Reactor . | . . . . Propulsion 2 | 2 . . . Treads . | . . . . Leg 2 | 2 . . . Wheel . | . . . . Hover . | . . . . Flight . | . . . . Utility 3 | 1 2 . . Device . | . . . . Storage 1 | 1 . . . Processor . | . . . . Hackware . | . . . . Protection 2 | . 2 . . Artifact . | . . . . Weapon . | . . . . Energy Gun . | . . . . Energy Cannon . | . . . . Ballistic Gun . | . . . . Ballistic Cannon . | . . . . Launcher . | . . . . Special Weapon . | . . . . Impact Weapon . | . . . . Slashing Weapon . | . . . . Piercing Weapon . | . . . . Special Melee Weapon . | . . . . Unidentified Prototypes . | . . . . Parts Lost 4 | . . . 4 Power 1 | . . . 1 Propulsion 2 | . . . 2 Utility 1 | . . . 1 Weapon . | . . . . Highest Loss Streak 2 | . . . 2 To Critical Strikes . | . . . . Average Backups 7 | 4 6 7 7 Power . | 1 1 1 . Propulsion 1 | 1 2 2 2 Utility 1 | . . 1 2 Weapon 2 | 1 3 3 3 Tool/Special . | . . . . Unused Backups 6 | . . . 6 Power . | . . . . Propulsion 2 | . . . 2 Utility 1 | . . . 1 Weapon 3 | . . . 3 Tool/Special . | . . . . Average Slot Usage (%) 68 | . 66 71 61 Engine 13 | . 14 14 13 Leg 26 | . 28 28 20 Storage 14 | . 14 14 14 Protection 13 | . 9 14 12 Peak Build Rating 5 | 4 5 5 5 Average Rating 4 | 3 4 5 4 On Entrance 3 | . 4 5 5 Naked Turns . | . . . . Heaviest Build 13 | 10 13 13 13 Greatest Support 20 | 20 20 20 20 Greatest Overweight (x) 3 | . . . 3 Average Overweight (x) . | . . . . Largest Inventory Capacity 8 | 8 8 8 8 Average Capacity 7 | 6 8 8 8 Most Carried 8 | 6 7 8 8 Average Carried 7 | 4 6 7 7 Final Capacity 8 | 8 8 8 8 Final Carried 8 | 6 7 8 7 Class Distribution -------------------- 100% | Mutant Dominant Class ---------------- Mutant | -10/Materials Mutant | -10/Mines Mutant | -10/Subcaves Resources | -11 -10 -10 -10 ----------- Run | Yrd Mat Min Sub Matter Collected 238 | 232 . 6 . Remotely . | . . . . Salvage Created . | . . . . Parts . | . . . . Haulers Intercepted . | . . . . Recyclers Shooed . | . . . . Parts Field Recycled . | . . . . Retrieved Matter . | . . . . Parts Self-Destructed 5 | . . . 5 Prevented . | . . . . Kills | -11 -10 -10 -10 ------- Run | Yrd Mat Min Sub Combat Hostiles Destroyed . | . . . . Classes Destroyed . | . . . . Best Kill Streak . | . . . . Combat Bots Only . | . . . . Max Kills in Single Turn . | . . . . Gunslinging . | . . . . Exploded . | . . . . Melee . | . . . . Uniques/NPCs Destroyed . | . . . . Combat | -11 -10 -10 -10 -------- Run | Yrd Mat Min Sub Hostile Shots Fired 57 | . 21 . 36 Missed 20 | . 6 . 14 Hits 37 | . 15 . 22 Projectile 37 | . 15 . 22 Damage Taken 686 | . 180 . 506 Core 253 | . 45 . 208 Absorbed by Shields . | . . . . Core Remaining (%) 100 | 100 . . . Volleys Fired . | . . . . Largest . | . . . . Hottest . | . . . . Shots Fired . | . . . . Gun . | . . . . Cannon . | . . . . Launcher . | . . . . Special . | . . . . Kinetic . | . . . . Thermal . | . . . . Explosive . | . . . . Electromagnetic . | . . . . Robot Hit Streak . | . . . . Robot Miss Streak . | . . . . Penetration Max . | . . . . Secondary Targets . | . . . . Shots Hit Robots . | . . . . Core Hits . | . . . . Critical Kills . | . . . . Critical Parts Destroyed . | . . . . Critical Strikes . | . . . . Melee Attacks . | . . . . Impact . | . . . . Slashing . | . . . . Piercing . | . . . . Sneak Attacks . | . . . . Combat Hostiles . | . . . . Follow-up Attacks . | . . . . Damage Inflicted 45 | 12 15 11 7 Guns . | . . . . Cannons . | . . . . Explosions . | . . . . Melee . | . . . . Ramming 45 | 12 15 11 7 Kinetic . | . . . . Thermal . | . . . . Explosive . | . . . . Electromagnetic . | . . . . Impact . | . . . . Slashing . | . . . . Piercing . | . . . . Highest Corruption . | . . . . Average Corruption . | . . . . Corruption Purged . | . . . . Corruption Blocked . | . . . . Overload Shots . | . . . . Overflow Damage . | . . . . Projectiles . | . . . . Explosions . | . . . . Melee . | . . . . Knockbacks . | . . . . Impact . | . . . . Kinetic . | . . . . Secondary . | . . . . Self-Inflicted Damage 1 | . . . 1 Shots . | . . . . Rammed 2 | . . . 2 Targets Rammed 17 | 3 5 3 6 Kicked 15 | 3 5 3 4 Crushed . | . . . . Highest Temperature . | . . . . Average Temperature . | . . . . Received Heat Transfer 228 | . 96 . 132 Siege Activations . | . . . . Martial Activations . | . . . . Shielding Activations . | . . . . Robots Disrupted . | . . . . Combat Hostiles . | . . . . Robots Corrupted . | . . . . Combat Hostiles . | . . . . Parts Fried . | . . . . Impact Corruptions . | . . . . Robots Melted . | . . . . Combat Hostiles . | . . . . Parts Melted . | . . . . Heat Transferred . | . . . . Parts Sabotaged . | . . . . Parts Stolen . | . . . . Parts Stripped . | . . . . Power Chain Reactions . | . . . . Alert | -11 -10 -10 -10 ------- Run | Yrd Mat Min Sub Maximum Alert Level . | . . . . Low Security (%) 100 | 100 100 100 . Level 1 . | . . . . Level 2 . | . . . . Level 3 . | . . . . Level 4 . | . . . . Level 5 . | . . . . High Security . | . . . . Max Security . | . . . . Peak Influence 30 | . 30 7 . Initial 7 | . . 7 . Average 1 | . 6 . . Influence Increases 45 | . 45 . . Partial Spotted 15 | . 15 . . Lose Combat Pursuer 30 | . 30 . . Influence Decreases 45 | . 25 20 . Entered New Map 13 | . . 13 . Time Decay 32 | . 25 7 . Squads Dispatched . | . . . . Investigation . | . . . . Extermination . | . . . . Reinforcement . | . . . . Assault . | . . . . Garrison . | . . . . Intercept . | . . . . Searches Triggered . | . . . . Construction Impeded . | . . . . Haulers Reinforced . | . . . . Active Scanning Responses . | . . . . Cargo Convoy Interrupts . | . . . . Stealth | -11 -10 -10 -10 --------- Run | Yrd Mat Min Sub Distress Signals . | . . . . Communications Jammed . | . . . . Distress Signals . | . . . . Times Spotted 11 | . 7 . 4 Peak Tracking Total 4 | . 4 . 4 Tactical Retreats 1 | . 1 . . Traps | -11 -10 -10 -10 ------- Run | Yrd Mat Min Sub Traps Triggered 1 | . . . 1 Indirectly . | . . . . Trap Hack Attempts . | . . . . Triggered . | . . . . Disarmed . | . . . . Reprogrammed . | . . . . Reused . | . . . . Traps Extracted . | . . . . Installed . | . . . . Triggered . | . . . . Machines | -11 -10 -10 -10 ---------- Run | Yrd Mat Min Sub Machines Disabled . | . . . . Max in Single Turn . | . . . . Machines Repaired . | . . . . Machines Dismantled . | . . . . Machines Sabotaged . | . . . . Overloaded Fab Kills . | . . . . Hacking | -11 -10 -10 -10 --------- Run | Yrd Mat Min Sub Machines Accessed 1 | . 1 . . Terminals . | . . . . Fabricators . | . . . . Repair Stations . | . . . . Recycling Units 1 | . 1 . . Scanalyzers . | . . . . Garrison Access . | . . . . Total Hacks 2 | . 2 . . Successful 2 | . 2 . . Failed . | . . . . Catastrophic . | . . . . Database Lockouts . | . . . . Manual . | . . . . Terminals . | . . . . Fabricators . | . . . . Repair Stations . | . . . . Recycling Units 2 | . 2 . . Scanalyzers . | . . . . Garrison Access . | . . . . Terminal Hacks . | . . . . Fabricator Hacks . | . . . . Repair Station Hacks . | . . . . Recycling Unit Hacks 2 | . 2 . . Report Inventory 1 | . 1 . . Retrieve Components 1 | . 1 . . Scanalyzer . | . . . . Garrison Access Hacks . | . . . . Unauthorized Hacks . | . . . . Terminals . | . . . . Fabricators . | . . . . Repair Stations . | . . . . Recycling Units . | . . . . Scanalyzers . | . . . . Garrison Access . | . . . . Data Cores Recovered . | . . . . Used . | . . . . Hacking Detections 1 | . 1 . . Full Trace Events . | . . . . Feedback Events . | . . . . Feedback Blocked . | . . . . Robot Schematics Acquired . | . . . . Robots Built . | . . . . Authchips . | . . . . Time . | . . . . Total Robot Build Rating . | . . . . Part Schematics Acquired . | . . . . Parts Built . | . . . . Authchips . | . . . . Time . | . . . . Total Part Build Rating . | . . . . Parts Repaired . | . . . . Time . | . . . . Parts Recycled . | . . . . Recycled Matter . | . . . . Retrieved Matter . | . . . . Retrieved Components 2 | . 2 . . Parts Scanalyzed . | . . . . Part Schematics Acquired . | . . . . Parts Damaged . | . . . . Bothacking | -11 -10 -10 -10 ------------ Run | Yrd Mat Min Sub Used RIF Installer . | . . . . Robots Hacked . | . . . . Non-combat . | . . . . Combat . | . . . . Robot Hacks Applied . | . . . . Relay Couplers Released . | . . . . Fabnet Peak Effective % . | . . . . Robots Rewired . | . . . . Allies Hacked . | . . . . Hacks Repelled . | . . . . Allies | -11 -10 -10 -10 -------- Run | Yrd Mat Min Sub Total Allies . | . . . . Largest Group . | . . . . Highest-Rated Group . | . . . . Highest-Rated Ally . | . . . . Total Orders . | . . . . Ally Attacks . | . . . . Total Damage . | . . . . Kills . | . . . . Allies Corrupted . | . . . . Allies Melted . | . . . . Intel | -11 -10 -10 -10 ------- Run | Yrd Mat Min Sub Active Infowar (turns) . | . . . . Robot Analysis Total . | . . . . Derelict Logs Recovered 3 | . . 2 1 Drone Launches . | . . . . Drone Recoveries . | . . . . Exploration | -11 -10 -10 -10 ------------- Run | Yrd Mat Min Sub Turns Passed 1012 | 72 126 639 175 Spaces Moved 797 | 52 97 529 119 Core 17 | 10 . . 7 Treads . | . . . . Legs 780 | 42 97 529 112 Wheels . | . . . . Hover . | . . . . Flight . | . . . . Fastest Speed 50 | 50 120 120 120 Average Speed 121 | 106 120 120 137 Slowest Speed 200 | 120 120 120 200 Overloaded Moves . | . . . . Propulsion Burnouts . | . . . . Robots Hopped . | . . . . Potential Cave-ins . | . . . . Cave-ins Triggered . | . . . . Exploration Rate (%) 33 | 4 24 97 9 Regions Visited 3 Branch Regions 2 Pre-discovered Areas 2 | . . 2 . Known Exits Taken . | . . . . Unknown Exits Taken 3 | 1 1 1 . Scrap Searched 1 | . . 1 . Spaces Dug . | . . . . Terrain Destroyed . | . . . . Melee . | . . . . Projectile . | . . . . AOE . | . . . . Terrain Rammed . | . . . . Walls Destroyed . | . . . . Machines Disabled . | . . . . Actions | -11 -10 -10 -10 --------- Run | Yrd Mat Min Sub Total 831 | 68 105 532 126 Wait . | . . . . Move 794 | 51 96 528 119 Hop . | . . . . Pick Up 13 | 10 2 1 . Fast Attach . | . . . . Attach 6 | 4 1 . 1 Detach . | . . . . Swap 1 | . 1 . . Drop . | . . . . Fire . | . . . . Melee . | . . . . Ram 2 | . . . 2 Kick 15 | 3 5 3 4 Crush . | . . . . Escape Stasis . | . . . . Rewire . | . . . . Trap . | . . . . Miscellaneous . | . . . . Route ------- -11/Scrapyard -10/Materials -10/Mines (discovered 3 exits: [*Mat x2] / [*Sub]) -10/Subcaves History --------- Turn | Location | Event 3 | -11/Scrapyard | Discovered new exit (range 15) 73 | -11/Scrapyard | Entered Materials 178 | -10/Materials | Discovered new exit (range 16) 199 | -10/Materials | Entered Mines 225 | -10/Mines | Learned location of Zion (-6) 286 | -10/Mines | Discovered new exit (range 6) 307 | -10/Mines | Build established: Mutant 383 | -10/Mines | YI-UF0 nonchalantly dropped a Grenade Launcher on the ground 522 | -10/Mines | Discovered new exit (range 11) 710 | -10/Mines | Learned location of Storage (-8) 714 | -10/Mines | Discovered new exit (range 9) 838 | -10/Mines | Entered Subcaves 839 | -10/Subcaves | Approached by a straggling Scientist 848 | -10/Subcaves | Learned Materials emergency access door positions 994 | -10/Subcaves | Core integrity fell below 50% 1006 | -10/Subcaves | Core integrity fell below 20% 1013 | -10/Subcaves | Destroyed by 1E-G9C(R) with Subdweller Laser Last Messages --------------- At least I think I can... The group I got separated from was talking about a shortcut back to the UFD." 00848_ Acquired derelict log, extracted data. Data stored: Materials emergency access points. 00895_ Triggered Piercing Trap. 00895_ Spikes shoot up from the floor. 00895_ Critical hit (Impale). 00938_ Aluminum Leg destroyed. 00942_ Subatomizers dissect the Lgt. Ion Engine. 00944_ Ion Engine destroyed. 00957_ Subatomizers dissect the Lgt. Ion Engine. 00991_ Kicked 1E-G9C(R). 00991_ Lgt. Armor Plating destroyed. 00992_ Kicked 1E-G9C(R). 00995_ Aluminum Leg destroyed. 00996_ Slammed into 1E-G9C(R). 00996_ Ion Engine broken. 00996_ Destabilizing: Short circuit. 00998_ Slammed into 1E-G9C(R). Map ----- +----------------------------------------------------+ | ?????????????????????????????????????????????????? | | ?????????????????????????????????????????????????? | | ?????????????????????????????????????????????????? | | ?????????????????????????????????????????????????? | | ?????????????????????????????????????????????????? | | ?????????????????????????????????????????????????? | | ?????????????????????????????????????????????????? | | ?????????????????????#???????????????????????????? | | ????????????????????? ?????????????????????????? | | ????????????????????? ""?????????????????????????? | | ????????????????????? ?????????????????????????? | | ??????? ?????????????# ?????????????????????????? | | ??????# ?????????????# #?????????????????????????? | | ??????# ?????????????# ?????????????????????????? | | ?????## ????????????# #?????????????????????????? | | ????## ????????????""##????????????????????????? | | ????# ????????????#""#????????????????????????? | | ????# ??????######%#?????????????????????????? | | ????# ??????#""## %###" ????????????????????? | | ?????# ?######"" #%" """"?????????????????????? | | ?????# ## ## "%"""""# #????????????????????? | | ?????# "## " #####??????????????????????? | | ??###?# " " #??????????????????????????? | | ## #?# " "" " ######?????????????????????? | | # #?##### ## # R ## #?????????????????? | | #?????## #### ##### @ #???????????????????? | | ######## " #??###???########???????????????????? | | ## * "###???????????????????????????????????? | | =% "##?????????????????????????????????????? | | #??????????????????????????????????????? | | #??????????????????????????????????????? | | # ## #??????????????????????????????????????? | | # ######??????????????????????????????????????? | | ##??????????????????????????????????????????? | | ##?????????????????????????????????????????? | | ###???????????????????????????????????????? | | ##??????????????????????????????????????? | | ### ##?????????????????????????????????????? | | ??## #?????????????????????????????????????? | | ???## #?????????????????????????????????????? | | ????## #?????????????????????????????????????? | | ####?#### #?????????????????????????????????????? | | ###??# #?????????????????????????????????????? | | #?## #?????### ????????????????????????????? | | # #### ####? """???????????????????????????? | | # # # ## ""??????????????????????????? | | # "" "??????????????????????????? | | # "" "?????????????????????????? | | ### ## ##### ""# ?????????????????????????? | | #?#??## ##??# ""#??? ???????????????????????????? | +----------------------------------------------------+ Best States ------------- Heat Dissipation 25 Energy Generation 10 Energy Capacity 250 Matter Stores 300 Matter Capacity 300 Sight Range 16 Terrain Scan Density 10 Armor Coverage 150 Utility Shielding 33 Evasion (%) 55 Item Schematics ----------------- None Robot Schematics ------------------ None Fabricated ------------ Nothing Repaired ---------- Nothing Alien Tech Used ----------------- None Achievements -------------- None Challenges ------------ None Game ------ Seed SignalFlyingMonowheel Manual? 0 Play Time 00:07:01 Cumulative 9.4 hours Start 2025.09.15 @ 21:42:02 End 2025.09.15 @ 21:48:09 Sessions 1 Manual Loads 0 Difficulty Rogue Special Mode None Game No. 28 Rogue 28 Adventurer 0 Explorer 0 Win Type - Total 0 Types 0/0/0/0/0/0/0/0/0/0 Lore% 19 Gallery% 10 Achievement% 15 Wizard Run 0 Options --------- Layout 2 ASCII 0 Keyboard 0 Movement Mouse Keybinds 0 Fullscreen 1 Font 24/Smallcaps Map View 50x44 Zoom Use 0% Tactical HUD 1 Map Filters NONE Filters NONE Steam 1 RUN: a6bcd1ae-a692-4624-bfe1-c19f2f361e54